Cogmind - Beta 17 @@@ ROGUE MODE // 2026.07.23 @ 19:17:11 Player: Akl Result: Destroyed by B-86 Titan with Matter Neutralizer Performance ------------- Evolutions (6) 3000 Regions Visited (12) 2400 Robots Destroyed (28) 140 Value Destroyed (1340) 1340 Prototype IDs (29) 580 Alien Tech Used (0) 0 Bonus (1004) 1004 TOTAL SCORE: 8464 Bonus ------- High Alert Combat Kills 16 Follower Combat Kills 712 Aligned with FarCom 300 Friendly Fire -24 Cogmind --------- Core Integrity 0/1150 Matter 300/300 Energy 99/100 System Corruption 21% Temperature Cool (9) Movement Core (50) Location -4/Extension Parts ------- > --- POWER (2) -------- (None) > --- PROPULSION (7) --- (None) > --- UTILITY (8) ------ Advanced Heat Sink Enhanced Optical Array Advanced Signal Interpreter Terrain Scan Processor Advanced Terrain Scan Processor Improved Targeting Computer Advanced Targeting Computer Target Analyzer > --- WEAPON (2) ------- (None) > --- INVENTORY (5) ---- Advanced Power Amplifier Advanced Heat Sink Core Analyzer Advanced System Shield Plasma Rifle Peak State ------------ > --- POWER ------------ Light Angular Momentum Engine Light Fission Core > --- PROPULSION ------- Cooled VTOL Module Cooled VTOL Module Cooled VTOL Module Flying Fortress v7 > --- UTILITY ---------- Small Storage Unit Improved Sensor Array Advanced Signal Interpreter IFF Parser Advanced Terrain Scanner Advanced Targeting Computer Target Analyzer Advanced Hacking Suite > --- WEAPON ----------- AWS/Thermal > --- INVENTORY -------- Advanced Power Amplifier Enhanced Optical Array Terrain Scan Processor Advanced Terrain Scan Processor Cloak of Protection Advanced Hacking Suite Advanced System Shield Remote Datajack [Rating: 108] Favorites ----------- Power Light Fission Core Engine Light Ion Engine Power Core Light Fission Core Reactor Light Antimatter Reactor Propulsion Cooled VTOL Module Leg Aluminum Leg Flight Unit Cooled VTOL Module Utility Small Storage Unit Device Improved Sensor Array Storage Small Storage Unit Processor Advanced Targeting Computer Hackware Advanced Hacking Suite Protection Improved Weapon Shielding Weapon AWS/Thermal Energy Gun AWS/Thermal Ballistic Gun Assault Rifle Special Weapon Mining Laser Build | -11 -10 -10 -10 -9 -8 -7 -7 -7 -6 -5 -4 -4 ------- Run | Yrd Mat Min Exi Min Mat Fac Low Low Fac Fac Fac Ext Slots Evolved 12 | . . . . . 4 2 . . 2 2 2 . Power 1 | . . . . . . 1 . . . . . . Propulsion 5 | . . . . . 4 . . . . 1 . . Utility 6 | . . . . . . 1 . . 2 1 2 . Weapon . | . . . . . . . . . . . . . Parts Attached 56 | 4 2 . 3 1 2 6 . . 5 4 3 26 Power 11 | . 1 . . 1 . 3 . . 2 . . 4 Engine 4 | . 1 . . 1 . 1 . . 1 . . . Core 3 | . . . . . . 2 . . 1 . . . Reactor 4 | . . . . . . . . . . . . 4 Propulsion 16 | 2 . . . . 1 2 . . . 1 1 9 Treads . | . . . . . . . . . . . . . Leg 11 | 2 . . . . . . . . . . . 9 Wheel . | . . . . . . . . . . . . . Hover . | . . . . . . . . . . . . . Flight 5 | . . . . . 1 2 . . . 1 1 . Utility 19 | . 1 . 1 . 1 1 . . 3 3 2 7 Device 7 | . . . 1 . 1 . . . 1 1 1 2 Storage 1 | . 1 . . . . . . . . . . . Processor 8 | . . . . . . 1 . . 1 1 1 4 Hackware 2 | . . . . . . . . . . 1 . 1 Protection 1 | . . . . . . . . . 1 . . . Artifact . | . . . . . . . . . . . . . Weapon 10 | 2 . . 2 . . . . . . . . 6 Energy Gun 6 | 1 . . 1 . . . . . . . . 4 Energy Cannon . | . . . . . . . . . . . . . Ballistic Gun 2 | 1 . . . . . . . . . . . 1 Ballistic Cannon . | . . . . . . . . . . . . . Launcher . | . . . . . . . . . . . . . Special Weapon 2 | . . . 1 . . . . . . . . 1 Impact Weapon . | . . . . . . . . . . . . . Slashing Weapon . | . . . . . . . . . . . . . Piercing Weapon . | . . . . . . . . . . . . . Special Melee Weapon . | . . . . . . . . . . . . . Unidentified Prototypes 4 | . . . 2 . . 1 . . . . 1 . Corrupted Parts 5 | . . . . . . . . . . . . 5 System Corruption 21 | . . . . . . . . . . . . 21 Parts Lost 27 | . . . . . . . . . . . . 27 Power 5 | . . . . . . . . . . . . 5 Propulsion 12 | . . . . . . . . . . . . 12 Utility 6 | . . . . . . . . . . . . 6 Weapon 4 | . . . . . . . . . . . . 4 Highest Loss Streak 14 | . . . . . . . . . . . . 14 To Critical Strikes . | . . . . . . . . . . . . . Average Backups 6 | 3 5 6 5 5 6 7 8 8 7 7 7 6 Power . | 1 1 1 1 1 1 . . . . . . . Propulsion . | . . . . 1 1 1 1 1 1 . . . Utility 2 | . . . . . 1 1 3 3 2 5 6 5 Weapon 2 | . 3 5 3 3 3 3 4 4 3 1 . . Tool/Special . | . . . . . . . . . . . . . Unused Backups 16 | . . . 2 . . 1 . . . 9 . 4 Power . | . . . . . . . . . . . . . Propulsion 1 | . . . . . . 1 . . . . . . Utility 8 | . . . . . . . . . . 5 . 3 Weapon 7 | . . . 2 . . . . . . 4 . 1 Tool/Special . | . . . . . . . . . . . . . Average Slot Usage (%) 74 | . 71 85 84 85 39 67 69 69 70 75 75 69 Engine 7 | . 7 14 14 14 9 10 . . 2 5 2 . Core 2 | . . . . . . 4 15 15 9 5 5 1 Leg 12 | . 28 28 27 28 2 2 . . . . . 8 Flight 10 | . . . . . 9 19 23 23 20 22 21 8 Device 8 | . . . 11 14 . 9 7 7 11 6 15 5 Storage 8 | . 7 14 14 14 9 7 7 7 6 5 5 4 Processor 9 | . . . . . . 4 7 7 6 10 14 26 Hackware 1 | . . . . . . . . . . 4 5 3 Energy Gun 8 | . 14 14 13 14 7 7 7 7 6 5 5 4 Ballistic Gun 1 | . 14 14 2 . . . . . . . . 1 Peak Build Rating 108 | 4 6 6 31 31 60 73 73 73 83 98 108 106 Average Rating 58 | 3 4 6 26 31 48 68 73 73 80 95 106 75 On Entrance 49 | . 4 6 6 31 31 55 73 73 73 83 98 106 Avg Prop Armor Cover (%) 1 | . . . . . 4 3 . . . . 1 1 Naked Turns . | . . . . . . . . . . . . . Heaviest Build 37 | 3 11 11 24 26 19 32 26 26 32 32 32 37 Greatest Support 150 | 20 20 20 20 20 50 60 60 60 66 71 60 150 Greatest Overweight (x) 11 | . . . 1 1 . . . . . . . 11 Average Overweight (x) . | . . . . 1 . . . . . . . . Largest Inventory Capacity 8 | 5 8 8 8 8 8 8 8 8 8 8 8 8 Average Capacity 7 | 5 6 8 8 8 8 8 8 8 8 8 8 7 Most Carried 8 | 5 6 6 8 8 8 8 8 8 8 8 8 8 Average Carried 7 | 3 5 6 7 8 6 7 8 8 7 7 7 6 Final Capacity 8 | 5 8 8 8 8 8 8 8 8 8 8 8 5 Final Carried 8 | 5 6 6 8 8 6 8 8 8 8 8 8 5 Class Distribution -------------------- 69% | Mutant 16% | Scout 9% | Scavenger-Mutant 4% | Sprinter Dominant Class ---------------- Mutant | -10/Materials Mutant | -10/Mines Mutant | -10/Exiles Mutant | -9/Mines Mutant | -8/Materials Mutant | -7/Factory Mutant | -7/Lower Caves Mutant | -7/Lower Caves Mutant | -6/Factory Mutant | -5/Factory Scout | -4/Factory Scavenger-Mutant | -4/Extension Resources | -11 -10 -10 -10 -9 -8 -7 -7 -7 -6 -5 -4 -4 ----------- Run | Yrd Mat Min Exi Min Mat Fac Low Low Fac Fac Fac Ext Matter Collected 956 | 249 . . . 60 33 44 53 . 10 90 32 385 Remotely . | . . . . . . . . . . . . . Salvage Created 1470 | 68 . . . 92 33 118 50 . . 227 230 652 Parts 70 | 7 . . . 3 1 7 3 . . 14 7 28 Haulers Intercepted . | . . . . . . . . . . . . . Recyclers Shooed . | . . . . . . . . . . . . . Parts Field Recycled . | . . . . . . . . . . . . . Retrieved Matter . | . . . . . . . . . . . . . Parts Self-Destructed 4 | . . . . . . . 4 . . . . . Prevented . | . . . . . . . . . . . . . Parts Restored . | . . . . . . . . . . . . . Kills | -11 -10 -10 -10 -9 -8 -7 -7 -7 -6 -5 -4 -4 ------- Run | Yrd Mat Min Exi Min Mat Fac Low Low Fac Fac Fac Ext Combat Hostiles Destroyed 19 | . . . . 2 . 2 2 . . 3 2 8 Guns 18 | . . . . 2 . 2 2 . . 3 2 7 Classes Destroyed 11 | 2 . . . 2 1 1 1 . . 2 1 1 Builder 1 | . . . . . . . . . . . . 1 Tunneler 1 | 1 . . . . . . . . . . . . Recycler 1 | 1 . . . . . . . . . . . . Operator 1 | . . . . . . . . . . 1 . . Watcher 5 | . . . . . 1 1 . . . 1 2 . Swarmer 2 | . . . . . . . 2 . . . . . Grunt 7 | . . . . 1 . 1 . . . . . 5 Brawler 1 | . . . . 1 . . . . . . . . Sentry 4 | . . . . . . . . . . . 2 2 Hunter 2 | . . . . . . . . . . 1 . 1 Programmer 3 | . . . . . . 1 . . . 2 . . Best Kill Streak 4 | 2 . . . 2 1 1 2 . . 1 1 4 Combat Bots Only 4 | . . . . 2 . 1 2 . . 1 1 4 Max Kills in Single Turn 1 | 1 . . . 1 1 1 1 . . 1 1 1 Gunslinging . | . . . . . . . . . . . . . Exploded . | . . . . . . . . . . . . . Melee . | . . . . . . . . . . . . . Uniques/NPCs Destroyed . | . . . . . . . . . . . . . Combat | -11 -10 -10 -10 -9 -8 -7 -7 -7 -6 -5 -4 -4 -------- Run | Yrd Mat Min Exi Min Mat Fac Low Low Fac Fac Fac Ext Hostile Shots Fired 352 | . . . . 1 . 15 3 . . 38 34 261 Missed 141 | . . . . . . 7 2 . . 16 21 95 Hits 211 | . . . . 1 . 8 1 . . 22 13 166 Melee 1 | . . . . . . . . . . . . 1 Projectile 210 | . . . . 1 . 8 1 . . 22 13 165 Critical Strikes 10 | . . . . . . . . . . 1 . 9 Damage Taken 4310 | . . . . 12 . 99 13 . . 449 154 3583 Core 1254 | . . . . . . 16 13 . . 48 25 1152 Absorbed by Shields 136 | . . . . . . . . . . . . 136 Core Remaining (%) 98 | 100 . . . 100 100 . . 95 100 95 . . Volleys Fired 52 | 3 . . . . 3 . . . . . . 46 Largest 2 | 2 . . . . 1 . . . . . . 2 Hottest 138 | 60 . . . . 100 . . . . . . 138 Shots Fired 221 | 6 . . . 2 6 20 6 . 3 42 25 111 Gun 218 | 6 . . . 2 3 20 6 . 3 42 25 111 Cannon . | . . . . . . . . . . . . . Launcher . | . . . . . . . . . . . . . Special 3 | . . . . . 3 . . . . . . . Kinetic 40 | 3 . . . . . . . . . . . 37 Thermal 181 | 3 . . . 2 6 20 6 . 3 42 25 74 Explosive . | . . . . . . . . . . . . . Electromagnetic . | . . . . . . . . . . . . . Robot Hit Streak 24 | 5 . . . 7 8 11 12 . 4 22 22 24 Robot Miss Streak 5 | . . . . . 1 1 3 . 1 1 2 5 Penetration Max 1 | . . . . . . . . . . . . 1 Secondary Targets . | . . . . . . . . . . . . . Autonomous 126 | . . . . 2 3 20 6 . 3 42 25 25 Shots Hit Robots 177 | 5 . . . 2 3 18 3 . 2 40 23 81 Core Hits 71 | 3 . . . 2 1 4 2 . 1 10 12 36 Critical Kills 2 | . . . . . . . . . . . . 2 Critical Parts Destroyed . | . . . . . . . . . . . . . Critical Strikes 5 | . . . . . . . . . . . . 5 Burn 3 | . . . . . . . . . . . . 3 Destroy 2 | . . . . . . . . . . . . 2 Melee Attacks . | . . . . . . . . . . . . . Impact . | . . . . . . . . . . . . . Slashing . | . . . . . . . . . . . . . Piercing . | . . . . . . . . . . . . . Sneak Attacks . | . . . . . . . . . . . . . Combat Hostiles . | . . . . . . . . . . . . . Follow-up Attacks . | . . . . . . . . . . . . . Damage Inflicted 4633 | 54 . . . 61 82 509 89 . 54 1218 676 1890 Guns 4603 | 54 . . . 61 58 509 89 . 54 1218 676 1884 Cannons . | . . . . . . . . . . . . . Explosions . | . . . . . . . . . . . . . Melee . | . . . . . . . . . . . . . Ramming 6 | . . . . . . . . . . . . 6 Kinetic 609 | 21 . . . . . . . . . . . 588 Thermal 4018 | 33 . . . 61 82 509 89 . 54 1218 676 1296 Explosive . | . . . . . . . . . . . . . Electromagnetic . | . . . . . . . . . . . . . Impact . | . . . . . . . . . . . . . Slashing . | . . . . . . . . . . . . . Piercing . | . . . . . . . . . . . . . Highest Corruption 21 | . . . . . . . . . . 8 . 21 Average Corruption 11 | . . . . . . . . . . 4 . 18 Corruption Purged . | . . . . . . . . . . . . . Corruption Blocked . | . . . . . . . . . . . . . Effects 29 | . . . . . . . . . . 7 . 22 Message Errors 8 | . . . . . . . . . . 3 . 5 Matter Fused 7 | . . . . . . . . . . 2 . 5 Heat Flow Errors 2 | . . . . . . . . . . 1 . 1 Energy Discharges 3 | . . . . . . . . . . 1 . 2 Data Loss (minor) 1 | . . . . . . . . . . . . 1 Data Loss (major) 1 | . . . . . . . . . . . . 1 Misfires 2 | . . . . . . . . . . . . 2 Misdirections 1 | . . . . . . . . . . . . 1 Weapon Failures 4 | . . . . . . . . . . . . 4 Overload Shots . | . . . . . . . . . . . . . Overflow Damage . | . . . . . . . . . . . . . Projectiles . | . . . . . . . . . . . . . Explosions . | . . . . . . . . . . . . . Melee . | . . . . . . . . . . . . . Knockbacks . | . . . . . . . . . . . . . Impact . | . . . . . . . . . . . . . Kinetic . | . . . . . . . . . . . . . Secondary . | . . . . . . . . . . . . . Self-Inflicted Damage . | . . . . . . . . . . . . . Shots . | . . . . . . . . . . . . . Rammed . | . . . . . . . . . . . . . Targets Rammed 1 | . . . . . . . . . . . . 1 Kicked 1 | . . . . . . . . . . . . 1 Crushed . | . . . . . . . . . . . . . Highest Temperature 352 | . . . . . 49 8 . . . 201 . 352 Average Temperature 81 | . . . . . 22 5 . . . 91 . 87 Received Heat Transfer 1292 | . . . . 6 . 39 . . . 27 9 1211 Effects 1 | . . . . . . . . . . . . 1 Shutdowns 1 | . . . . . . . . . . . . 1 Siege Activations . | . . . . . . . . . . . . . Martial Activations . | . . . . . . . . . . . . . Shielding Activations . | . . . . . . . . . . . . . Robots Disrupted . | . . . . . . . . . . . . . Combat Hostiles . | . . . . . . . . . . . . . Robots Corrupted . | . . . . . . . . . . . . . Combat Hostiles . | . . . . . . . . . . . . . Parts Fried 1 | . . . . . . . . . . . . 1 Impact Corruptions . | . . . . . . . . . . . . . Robots Melted 1 | . . . . . . . . . . . . 1 Combat Hostiles 1 | . . . . . . . . . . . . 1 Parts Melted 6 | . . . . . . 1 . . . 1 2 2 Heat Transferred 5764 | 75 . . . 74 124 629 111 . 74 1369 851 2457 Parts Sabotaged . | . . . . . . . . . . . . . Parts Stolen . | . . . . . . . . . . . . . Parts Stripped . | . . . . . . . . . . . . . Power Chain Reactions . | . . . . . . . . . . . . . Alert | -11 -10 -10 -10 -9 -8 -7 -7 -7 -6 -5 -4 -4 ------- Run | Yrd Mat Min Exi Min Mat Fac Low Low Fac Fac Fac Ext Maximum Alert Level 2 | . . . . . . . . . . . . 2 Low Security (%) 85 | 100 100 100 . 100 100 100 . . 100 100 100 54 Level 1 13 | . . . . . . . . . . . . 45 Level 2 . | . . . . . . . . . . . . . Level 3 . | . . . . . . . . . . . . . Level 4 . | . . . . . . . . . . . . . Level 5 . | . . . . . . . . . . . . . High Security . | . . . . . . . . . . . . . Max Security . | . . . . . . . . . . . . . Peak Influence 403 | 5 3 . . 50 8 55 . . 86 168 124 403 Initial 63 | . 3 . . . . . . . 31 37 63 53 Average 72 | . 1 . . 12 . 19 . . 27 65 61 157 Influence Increases 1945 | 10 . . . 50 15 105 115 . 126 300 188 1036 Destroy 0b10 Robot/C 660 | . . . . 40 . 40 40 . . 60 40 440 Destroy 0b10 Robot/NC 45 | 10 . . . . 5 5 . . . 10 10 5 Destroy Leader 120 | . . . . 10 2 12 . . . 22 24 50 Allied During Kill 49 | . . . . . . . . . . . . 49 Successful Hack 87 | . . . . . 5 . . . 20 20 24 18 Disable Machine 45 | . . . . . . . . . . . . 45 Destroy Structure 69 | . . . . . 3 3 . . 1 8 . 54 Partial Spotted 180 | . . . . . . 15 . . 30 45 45 45 Lose Combat Pursuer 690 | . . . . . . 30 75 . 75 135 45 330 Influence Decreases 1693 | 5 5 . . 50 15 90 66 13 101 245 208 895 Entered New Map 206 | . 2 . . . . . 6 13 20 39 68 58 Time Decay 922 | 5 3 . . 50 15 90 60 . 81 206 140 272 Lost Part 185 | . . . . . . . . . . . . 185 Lost Ally 80 | . . . . . . . . . . . . 80 Purge Threat 300 | . . . . . . . . . . . . 300 Squads Dispatched 16 | . . . . . . 1 . . 2 7 1 5 Investigation 9 | . . . . . . 1 . . . 4 . 4 Extermination 4 | . . . . . . . . . 1 2 1 . Reinforcement 3 | . . . . . . . . . 1 1 . 1 Assault . | . . . . . . . . . . . . . Garrison . | . . . . . . . . . . . . . Intercept . | . . . . . . . . . . . . . Searches Triggered . | . . . . . . . . . . . . . Construction Impeded . | . . . . . . . . . . . . . Haulers Reinforced . | . . . . . . . . . . . . . Active Scanning Responses . | . . . . . . . . . . . . . Cargo Convoy Interrupts . | . . . . . . . . . . . . . Stealth | -11 -10 -10 -10 -9 -8 -7 -7 -7 -6 -5 -4 -4 --------- Run | Yrd Mat Min Exi Min Mat Fac Low Low Fac Fac Fac Ext Distress Signals 7 | . . . . . 1 . . . . 1 2 3 Communications Jammed . | . . . . . . . . . . . . . Distress Signals . | . . . . . . . . . . . . . Times Spotted 95 | . . . . 1 2 7 6 . 3 15 12 49 Peak Tracking Total 11 | . . . . 1 2 2 6 . 5 9 5 11 Tactical Retreats 21 | . . . . . . 1 2 . 2 5 2 9 Traps | -11 -10 -10 -10 -9 -8 -7 -7 -7 -6 -5 -4 -4 ------- Run | Yrd Mat Min Exi Min Mat Fac Low Low Fac Fac Fac Ext Traps Triggered 13 | . . . . . . 3 . . . 5 2 3 Indirectly . | . . . . . . . . . . . . . Trap Hack Attempts . | . . . . . . . . . . . . . Triggered . | . . . . . . . . . . . . . Disarmed . | . . . . . . . . . . . . . Reprogrammed . | . . . . . . . . . . . . . Reused . | . . . . . . . . . . . . . Traps Extracted . | . . . . . . . . . . . . . Installed . | . . . . . . . . . . . . . Triggered . | . . . . . . . . . . . . . Machines | -11 -10 -10 -10 -9 -8 -7 -7 -7 -6 -5 -4 -4 ---------- Run | Yrd Mat Min Exi Min Mat Fac Low Low Fac Fac Fac Ext Machines Disabled 3 | . . . . . . . . . . . . 3 Max in Single Turn . | . . . . . . . . . . . . . Machines Repaired . | . . . . . . . . . . . . . Machines Dismantled . | . . . . . . . . . . . . . Machines Sabotaged . | . . . . . . . . . . . . . Overloaded Fab Kills . | . . . . . . . . . . . . . Hacking | -11 -10 -10 -10 -9 -8 -7 -7 -7 -6 -5 -4 -4 --------- Run | Yrd Mat Min Exi Min Mat Fac Low Low Fac Fac Fac Ext Machines Accessed 34 | . . . 2 . 2 4 . . 6 8 3 9 Terminals 27 | . . . . . 2 2 . . 5 7 2 9 Fabricators 1 | . . . . . . 1 . . . . . . Repair Stations . | . . . . . . . . . . . . . Recycling Units . | . . . . . . . . . . . . . Scanalyzers 4 | . . . . . . 1 . . 1 1 1 . Garrison Access . | . . . . . . . . . . . . . Total Hacks 100 | . . . 24 . 5 6 . . 12 20 5 28 Successful 55 | . . . 24 . 2 1 . . 2 9 2 15 Failed 45 | . . . . . 3 5 . . 10 11 3 13 Catastrophic 18 | . . . . . 2 3 . . 3 4 2 4 Database Lockouts . | . . . . . . . . . . . . . Manual 49 | . . . 1 . 5 3 . . 10 13 5 12 Terminals 67 | . . . . . 5 3 . . 8 19 4 28 Fabricators 2 | . . . . . . 2 . . . . . . Repair Stations . | . . . . . . . . . . . . . Recycling Units . | . . . . . . . . . . . . . Scanalyzers 7 | . . . . . . 1 . . 4 1 1 . Garrison Access . | . . . . . . . . . . . . . Terminal Hacks 47 | . . . 24 . 2 . . . 2 6 . 13 Record 31 | . . . 23 . . . . . . 4 . 4 Prototype ID Bank 2 | . . . . . . . . . 1 1 . . Open Door 4 | . . . . . . . . . . . . 4 Emergency Access Points 2 | . . . . . 1 . . . . . . 1 Alert Level 1 | . . . . . . . . . . . . 1 Unreport Threat 2 | . . . . . . . . . . . . 2 Zone Layout 4 | . . . . . 1 . . . 1 1 . 1 Proto ID Catalog 1 | . . . 1 . . . . . . . . . Fabricator Hacks 1 | . . . . . . 1 . . . . . . Network Status 1 | . . . . . . 1 . . . . . . Repair Station Hacks . | . . . . . . . . . . . . . Recycling Unit Hacks . | . . . . . . . . . . . . . Scanalyzer . | . . . . . . . . . . . . . Garrison Access Hacks . | . . . . . . . . . . . . . Unauthorized Hacks 7 | . . . . . . . . . . 3 2 2 Terminals 7 | . . . . . . . . . . 3 2 2 Botnet 7 | . . . . . . . . . . 3 2 2 Fabricators . | . . . . . . . . . . . . . Repair Stations . | . . . . . . . . . . . . . Recycling Units . | . . . . . . . . . . . . . Scanalyzers . | . . . . . . . . . . . . . Garrison Access . | . . . . . . . . . . . . . Data Cores Recovered 1 | . . . . . . . . . . 1 . . Used . | . . . . . . . . . . . . . Hacking Detections 23 | . . . . . 2 4 . . 3 7 3 4 Full Trace Events 7 | . . . . . . . . . . 4 . 3 Feedback Events 2 | . . . . . . . . . . 1 . 1 Corruption 1 | . . . . . . . . . . 1 . . Hackware Fried 1 | . . . . . . . . . . . . 1 Feedback Blocked . | . . . . . . . . . . . . . Robot Schematics Acquired . | . . . . . . . . . . . . . Robots Built . | . . . . . . . . . . . . . Authchips . | . . . . . . . . . . . . . Time . | . . . . . . . . . . . . . Total Robot Build Rating . | . . . . . . . . . . . . . Part Schematics Acquired . | . . . . . . . . . . . . . Parts Built . | . . . . . . . . . . . . . Authchips . | . . . . . . . . . . . . . Time . | . . . . . . . . . . . . . Total Part Build Rating . | . . . . . . . . . . . . . Part Studies Acquired . | . . . . . . . . . . . . . Parts Repaired . | . . . . . . . . . . . . . Time . | . . . . . . . . . . . . . Parts Recycled . | . . . . . . . . . . . . . Recycled Matter . | . . . . . . . . . . . . . Retrieved Matter . | . . . . . . . . . . . . . Retrieved Components . | . . . . . . . . . . . . . Parts Scanalyzed . | . . . . . . . . . . . . . Part Schematics Acquired . | . . . . . . . . . . . . . Parts Damaged . | . . . . . . . . . . . . . Bothacking | -11 -10 -10 -10 -9 -8 -7 -7 -7 -6 -5 -4 -4 ------------ Run | Yrd Mat Min Exi Min Mat Fac Low Low Fac Fac Fac Ext Used RIF Installer . | . . . . . . . . . . . . . Robots Hacked . | . . . . . . . . . . . . . Non-combat . | . . . . . . . . . . . . . Combat . | . . . . . . . . . . . . . Robot Hacks Applied . | . . . . . . . . . . . . . Relay Couplers Released . | . . . . . . . . . . . . . Fabnet Peak Effective % . | . . . . . . . . . . . . . Robots Rewired . | . . . . . . . . . . . . . Allies Hacked . | . . . . . . . . . . . . . Hacks Repelled . | . . . . . . . . . . . . . Allies | -11 -10 -10 -10 -9 -8 -7 -7 -7 -6 -5 -4 -4 -------- Run | Yrd Mat Min Exi Min Mat Fac Low Low Fac Fac Fac Ext Total Allies 5 | . . . . . . . . . . . . 5 Largest Group 2 | . . . . . . . . . . . . 2 Highest-Rated Group 159 | . . . . . . . . . . . . 159 Highest-Rated Ally 159 | . . . . . . . . . . . . 159 Total Orders . | . . . . . . . . . . . . . Ally Attacks 50 | . . . . . . . . . . . . 50 Total Damage 2334 | . . . . . . . . . . . . 2334 Kills 14 | . . . . . . . . . . . . 14 Allies Corrupted . | . . . . . . . . . . . . . Allies Melted . | . . . . . . . . . . . . . Intel | -11 -10 -10 -10 -9 -8 -7 -7 -7 -6 -5 -4 -4 ------- Run | Yrd Mat Min Exi Min Mat Fac Low Low Fac Fac Fac Ext Active Infowar (turns) 2098 | . . . 1 . 7 264 122 6 180 433 299 786 Optics 548 | . . . . . . . . . . . . 548 Sensors 1586 | . . . . . 7 264 122 6 180 433 299 275 IFF 556 | . . . . . . . . . . . 299 257 Terrain 611 | . . . . . . . . . . 75 299 237 Cloaking 28 | . . . 1 . . 27 . . . . . . Robot Analysis Total . | . . . . . . . . . . . . . Derelict Logs Recovered 1 | . . . . 1 . . . . . . . . Drone Launches . | . . . . . . . . . . . . . Drone Recoveries . | . . . . . . . . . . . . . Exploration | -11 -10 -10 -10 -9 -8 -7 -7 -7 -6 -5 -4 -4 ------------- Run | Yrd Mat Min Exi Min Mat Fac Low Low Fac Fac Fac Ext Turns Passed 3677 | 79 34 77 1000 234 163 264 122 6 180 433 299 786 Spaces Moved 5410 | 54 25 65 568 123 273 639 359 16 498 1252 799 739 Core 48 | 10 . . . . . . . . . . . 38 Treads . | . . . . . . . . . . . . . Legs 953 | 44 25 65 568 123 . . . . . . . 128 Wheels . | . . . . . . . . . . . . . Hover . | . . . . . . . . . . . . . Flight 4409 | . . . . . 273 639 359 16 498 1252 799 573 Fastest Speed 29 | 50 120 120 120 190 50 34 34 34 34 29 34 31 Average Speed 58 | 107 120 120 173 190 51 37 34 34 34 31 34 55 Slowest Speed 600 | 120 120 120 190 190 60 60 34 34 34 34 34 600 Overloaded Moves . | . . . . . . . . . . . . . Propulsion Burnouts . | . . . . . . . . . . . . . Robots Hopped 19 | . . . . . 1 1 . . 7 5 2 3 Potential Cave-ins . | . . . . . . . . . . . . . Cave-ins Triggered . | . . . . . . . . . . . . . Exploration Rate (%) 29 | 4 9 17 90 30 22 21 58 6 15 36 22 54 Regions Visited 12 Branch Regions 6 Pre-discovered Areas 1 | . . . 1 . . . . . . . . . Known Exits Taken 1 | . . . . . . . . . . . 1 . Unknown Exits Taken 11 | 1 1 1 1 1 1 1 1 1 1 1 . . Scrap Searched 5 | . . . . . . . 5 . . . . . Spaces Dug 2 | . . . . . 2 . . . . . . . Terrain Destroyed 15 | . . . . . 3 3 2 . 1 4 . 2 Melee . | . . . . . . . . . . . . . Projectile 15 | . . . . . 3 3 2 . 1 4 . 2 AOE . | . . . . . . . . . . . . . Terrain Rammed . | . . . . . . . . . . . . . Walls Destroyed . | . . . . . . . . . . . . . Machines Disabled . | . . . . . . . . . . . . . Actions | -11 -10 -10 -10 -9 -8 -7 -7 -7 -6 -5 -4 -4 --------- Run | Yrd Mat Min Exi Min Mat Fac Low Low Fac Fac Fac Ext Total 5808 | 69 29 64 584 124 286 660 358 15 500 1285 823 1011 Wait 191 | . . . 5 . . 2 . . . 9 21 154 Move 5361 | 53 24 64 567 122 270 636 358 15 484 1241 794 733 Hop 18 | . . . . . 1 1 . . 6 5 2 3 Pick Up 41 | 9 3 . 1 . 1 6 . . 2 12 2 5 Fast Attach 33 | . . . 3 . 1 5 . . 2 2 1 19 Attach 24 | 4 2 . . . 4 2 . . 1 2 2 7 Detach 7 | . . . 1 . 5 . . . . . . 1 Swap 6 | . . . 1 1 . . . . 2 1 . 1 Drop 30 | . . . 5 1 1 6 . . 3 11 1 2 Fire 52 | 3 . . . . 3 . . . . . . 46 Melee . | . . . . . . . . . . . . . Ram . | . . . . . . . . . . . . . Kick 1 | . . . . . . . . . . . . 1 Crush . | . . . . . . . . . . . . . Escape Stasis 43 | . . . . . . 2 . . . 2 . 39 Rewire 1 | . . . 1 . . . . . . . . . Trap . | . . . . . . . . . . . . . Miscellaneous . | . . . . . . . . . . . . . Route ------- -11/Scrapyard -10/Materials -10/Mines -10/Exiles (discovered 2 exits: [*Min x2]) -9/Mines -8/Materials -7/Factory -7/Lower Caves -7/Lower Caves -6/Factory -5/Factory -4/Factory -4/Extension History --------- Turn | Location | Event 14 | -11/Scrapyard | Discovered new exit (range 15) 80 | -11/Scrapyard | Entered Materials 80 | -10/Materials | Discovered new exit (range 7) 114 | -10/Materials | Entered Mines 186 | -10/Mines | Deemed a non-threat by the Exiles lab entrance 186 | -10/Mines | Discovered new exit (range 5) 191 | -10/Mines | Entered Exiles 209 | -10/Exiles | Discovered new exit (range 15) 245 | -10/Exiles | Met 8R-AWN 266 | -10/Exiles | Met EX-HEX 297 | -10/Exiles | Met EX-BIN 310 | -10/Exiles | Build established: Mutant 311 | -10/Exiles | Aligned with FarCom system 313 | -10/Exiles | Given EX-Vault access code 340 | -10/Exiles | Opened EX-Vault 352 | -10/Exiles | Found Prototype Flight Unit 360 | -10/Exiles | Found Prototype Device 360 | -10/Exiles | Identified Cloak of Protection 367 | -10/Exiles | Found Prototype Energy Gun 367 | -10/Exiles | Identified AWS/Thermal 370 | -10/Exiles | Identified Flying Fortress v7 410 | -10/Exiles | Warned to stay clear of 0b10 Research branches 471 | -10/Exiles | Met EX-DEC 518 | -10/Exiles | Learned location of Zion (-6) 573 | -10/Exiles | Discovered new exit (range 14) 725 | -10/Exiles | Visited The Gauntlet 1191 | -10/Exiles | Stole three prototypes: Cloak of Protection, Flying Fortress v7, AWS/Thermal 1191 | -10/Exiles | Entered Mines 1349 | -9/Mines | Learned Materials trap positions 1421 | -9/Mines | Discovered new exit (range 2) 1425 | -9/Mines | Entered Materials 1425 | -8/Materials | Evolved 4 slots: Propulsion x4 1426 | -8/Materials | Loaded intel: 14 trap records 1562 | -8/Materials | Discovered new exit (range 14) 1588 | -8/Materials | Entered Factory 1588 | -7/Factory | Evolved 2 slots: Power x1, Utility x1 1590 | -7/Factory | FarCom data flow suspended 1846 | -7/Factory | Discovered new exit (range 8) 1852 | -7/Factory | Entered Lower Caves 1872 | -7/Lower Caves | Attracted the attention of an 0b10 base 1971 | -7/Lower Caves | Discovered new exit (range 9) 1974 | -7/Lower Caves | Entered another Lower Caves area 1978 | -7/Lower Caves | Discovered new exit (range 6) 1980 | -7/Lower Caves | Entered Factory 1980 | -6/Factory | Evolved 2 slots: Utility x2 2150 | -6/Factory | Discovered new exit (range 15) 2160 | -6/Factory | Entered another Factory area 2160 | -5/Factory | Evolved 2 slots: Propulsion x1, Utility x1 2588 | -5/Factory | Discovered new exit (range 15) 2593 | -5/Factory | Entered another Factory area 2593 | -4/Factory | Evolved 2 slots: Utility x2 2883 | -4/Factory | Build established: Scout 2886 | -4/Factory | Discovered new exit (range 15) 2891 | -4/Factory | Identified exit to Extension 2892 | -4/Factory | Entered Extension 2914 | -4/Extension | Rescued a captive Derelict 3023 | -4/Extension | Spotted B-86 Titan 3160 | -4/Extension | AWS/Thermal suddenly broke down 3166 | -4/Extension | Spotted B-86 Titan 3204 | -4/Extension | Lost 9 parts (1p3n4u1w) 3235 | -4/Extension | Rescued a captive Derelict 3265 | -4/Extension | Rescued A7 3345 | -4/Extension | System corruption reached 10% 3419 | -4/Extension | Adv. Hacking Suite fried by hacking feedback 3473 | -4/Extension | Core integrity fell below 50% 3492 | -4/Extension | Rescued a captive Derelict 3494 | -4/Extension | Rescued a captive Derelict 3498 | -4/Extension | Extracted ID and sensor layout for unrecognized location from A7's data core 3587 | -4/Extension | Build established: Scavenger-Mutant 3671 | -4/Extension | Core integrity fell below 20% 3678 | -4/Extension | Destroyed by B-86 Titan with Matter Neutralizer Last Messages --------------- 03663_ Machine disabled. 03665_ Acquired Flexi-carbon Leg. 03666_ B-86 Titan activates siege mode. 03666_ Penetrated by Slug. 03667_ Critical hit (Meltdown: +360). 03667_ Flexi-carbon Leg destroyed. 03667_ Penetrated by Slug. 03667_ Slug penetrates Wall. 03667_ Acquired Lgt. Antimatter Reactor. 03669_ Plasma Rifle destroyed. 03669_ Knocked back. 03669_ Penetrated by Slug. 03670_ Acquired 10 matter. 03670_ B-86 Titan activates siege mode. 03670_ Flexi-carbon Leg destroyed. 03670_ Field Laser destroyed. 03670_ Penetrated by Slug. 03672_ B-86 Titan misfires. 03673_ Penetrated by Slug. 03676_ Lgt. Antimatter Reactor destroyed. Map ----- +----------------------------------------------------+ | # """ "###????## T#?????????????????????????????? | | ## [ ##???## ##?????????????????????????????? | | %[ [##### #####?????????????????????????? | | [%=%% #?????????????????????????? | | [ [[!%! ### #?????????????????????????? | | #""=% #?# ### #?????????????????????????? | | =# """ ###?# #?# #?????????????????????????? | | %#"""#" #???# #?# #?????????????????????????? | | ! #???# #?# #?????????????????????????? | | ########???# #?# #?????????????????????????? | | #??????????# #?# #?????????????????????????? | | ##??????????#^ #?# #?????????????????????????? | | ????????????#^ #?# #?????????????????????????? | | ????????????# ######?# #?????????????????????????? | | ????????????# #??????# #?????????????????????????? | | ????????????# #????### #?????????????????????????? | | ????????????# #????? # #?????????????????????????? | | ????????????# #######; #?????????????????????????? | | ???????????## [#?????????????????????????? | | ???????????#" !#?????????????????????????? | | ????????????# ##????????????????????????? | | ????????????# !!;####?????????????????????? | | ????????????#########; ; BB##?#??????????????????? | | ????????????#??????##;%#;BB;# ### ###????????????? | | ???#???????????????#" %% "" ""#????????????? | | ???????????????????# =@ " " #????????????? | | ???????????????????#!/[%%[ #????????????? | | ??????###???????#??# *[[* #????????????? | | #################"## ###??????????? | | % ???????? | | ! % w ?????? | | [ % % ????? | | % ????? | | % ku A tu ?????? | | #################### BB ###;####?????? | | ???????????????????# BB #???#????????? | | ???????????????????# #????????????? | | ???????????????????# #????????????? | | ???????????????????# #????????????? | | ??????????????#????#;;###T#"""#######????????????? | | ???????????????????## ???##??????????????????????? | | ??#??????????????????#???????????????????????????? | | | | | | | | | | | | | | | | | +----------------------------------------------------+ Best States ------------- Heat Dissipation 62 Energy Generation 37 Energy Capacity 400 Matter Stores 300 Matter Capacity 300 Sight Range 22 Robot Scan Range 15 Terrain Scan Range 20 Terrain Scan Density 285 Cloak Strength 5 Additional Mass Support 6 Weapon Shielding 66 Evasion (%) 64 Targeting Accuracy 14 Target Analysis 5 Offensive Hacking 14 Item Schematics ----------------- None Robot Schematics ------------------ None Fabricated ------------ Nothing Repaired ---------- Nothing Studied --------- None Alien Tech Used ----------------- None Achievements -------------- Morally Flexible Prison Break Quantum Hacking Challenges ------------ None Game ------ Seed JunkMultireflexPerforator Manual? 0 Play Time 01:10:48 Cumulative 34.7 hours Start 2026.07.23 @ 18:03:53 End 2026.07.23 @ 19:17:11 Sessions 1 Manual Loads 0 Difficulty Rogue Special Mode None Game No. 58 Rogue 58 Adventurer 0 Explorer 0 Win Type - Total 0 Types 0/0/0/0/0/0/0/0/0/0 Lore% 24 Gallery% 29 Achievement% 23 Wizard Run 0 Options --------- Layout 1 ASCII 0 Keyboard 0 Movement Numpad Keybinds 0 Fullscreen 1 Font 24/Smallcaps Map View 50x35 Zoom Use 0% Tactical HUD 1 Map Filters NONE Filters NONE Steam 1 RUN: 4928cfce-31ec-4630-99ce-a7d968b14ddc